[Event "Uhlenkoeper-Open 2024"]
[Site "Uelzen"]
[Date "2024.12.27"]
[Round "1.1"]
[White "Stelmaszyk, Nico"]
[Black "Juergenpott, Maximilian"]
[Result "1-0"]
[ECO "B15"]
[WhiteElo "2403"]
[BlackElo "1788"]
[Annotator "TA"]
[PlyCount "73"]
[EventDate "2024.12.27"]
[EventType "swiss"]
[EventCountry "GER"]
[SourceTitle "playchess.com"]
[Source "ChessBase"]
[SourceQuality "1"]
[TimeControl "40/5400+30:1800+30"]

{[%evp 11,73,41,36,25,35,18,28,23,27,20,27,22,42,0,47,31,32,35,29,28,90,93,97,84,109,94,125,100,135,98,183,150,182,191,257,264,278,259,295,283,275,253,245,246,292,311,307,281,666,670,969,958,1310,678,665,685,691,683,694,695,671,658,29984,580]} 1. e4 {[%emt 0:00:03]} c6 {[%emt 0:00:06]} 2. Nf3 {[%emt 0:00:04]} d5 {[%emt 0:00:05]} 3. Nc3 {[%emt 0:00:03]} Bg4 {[%emt 0:00:06]} 4. d4 {[%emt 0:00:04]} dxe4 {[%emt 0:00:59]} 5. Nxe4 {[%emt 0:00:04]} Nf6 {[%emt 0:00:36]} 6. Nxf6+ {[%emt 0:00:05]} exf6 {[%emt 0:00:06]} 7. Be3 {[%emt 0:00:37]} Bd6 {[%emt 0:00:19]} 8. Bd3 {[%emt 0:00:17]} O-O {[%emt 0:00:36]} 9. h3 {[%emt 0:00:32][%cal Bh2h3,Bh3h4,Bh4h5][%mdl 32] White has an edge.} Be6 {[%emt 0:04:27]} 10. c3 {[%emt 0:09:12]} Nd7 {[%emt 0:11:36]} 11. Qc2 {[%emt 0:00:19]} g6 {[%emt 0:01:58]} 12. h4 {[%emt 0:00:32]} Re8 {[%emt 0:06:52]} (12... h5 $1 $11 {is more appropriate.}) 13. h5 $14 {[%emt 0:02:00][%cal Rh5g6] [#] hxg6 is the strong threat.} Nf8 {[%emt 0:00:29]} 14. O-O-O {[%emt 0:10:30]} Qc7 {[%emt 0:07:46]} 15. Kb1 {[%emt 0:06:44]} Bf4 {[%emt 0:01:58]} (15... b5 $11 {keeps the balance.}) 16. Rh4 $16 {[%emt 0:05:56] Black is now going downhill.} Bxe3 {[%emt 0:03:50]} 17. fxe3 {[%emt 0:00:08][%cal Bf2e3,Be3e4,Be4f5][%mdl 32]} g5 {[%emt 0:07:59]} 18. Rhh1 {[%emt 0:01:54]} Bg4 {[%emt 0:01:07]} 19. Qf2 {[%emt 0:06:03]} Qe7 {[%emt 0:03:53]} 20. e4 {[%emt 0:03:30] White is more active.} f5 {[%emt 0:02:23]} 21. exf5 {[%emt 0:02:51] [#] And now Rde1 would win.} Qe3 {[%emt 0:00:36]} 22. Qg3 {[%emt 0:00:59]} Bxf3 {[%emt 0:00:54]} (22... Qf4 {is a better defense.} 23. Qxf4 gxf4) 23. gxf3 $18 {[%emt 0:00:09]} h6 {[%emt 0:10:09]} 24. Rhe1 {[%emt 0:03:26][%cal Bh1e1,Be1g1,Bg1g6][%mdl 32]} Qf4 {[%emt 0:00:09]} 25. Qxf4 {[%emt 0:00:05]} gxf4 {[%emt 0:00:09]} 26. Rg1+ {[%emt 0:00:15]} Kh8 {[%emt 0:00:09]} 27. Bc4 {[%emt 0:00:16]} Nh7 {[%emt 0:02:03]} 28. Bxf7 {[%emt 0:00:31]} Re3 {[%emt 0:00:18]} 29. Rg6 {[%emt 0:13:47]} Ng5 $2 {[%emt 0:02:34]} (29... Rxf3 30. Rdg1 (30. Rxh6 Kg7 $11) 30... Rg3 31. R1xg3 fxg3) 30. Bb3 {[%emt 0:00:49]} Kh7 {[%emt 0:01:03]} 31. f6 {[%emt 0:01:07] Hoping for d5.} Rf8 {[%emt 0:03:10]} 32. Bc2 {[%emt 0:00:25]} Nxf3 {[%emt 0:04:31]} 33. Kc1 {[%emt 0:01:59]} Ne1 {[%emt 0:03:29]} 34. Bb1 {[%emt 0:00:38]} Nf3 {[%emt 0:01:21]} 35. Rf1 {[%emt 0:00:38]} Kh8 {[%emt 0:05:56]} 36. a3 {[%emt 0:00:30]} Nh4 {[%emt 0:05:43]} 37. Rxh6+ {[%emt 0:00:16] Weighted Error Value: White=0.28 (precise) /Black=0.49.  Mistake:       	---       	Black=5      Inaccurate:     	White=1     	Black=3      OK:         	White=10    	Black=5      Best:        	White=1     	Black=1} 1-0

[Event "Uhlenkoeper-Open 2024"]
[Site "Uelzen"]
[Date "2024.12.27"]
[Round "1.2"]
[White "Henschen, Patrick"]
[Black "Glek, Igor"]
[Result "0-1"]
[ECO "A84"]
[WhiteElo "1825"]
[BlackElo "2431"]
[Annotator "TA"]
[PlyCount "56"]
[EventDate "2024.12.27"]
[EventType "swiss"]
[EventCountry "GER"]
[SourceTitle "playchess.com"]
[Source "ChessBase"]
[SourceQuality "1"]
[TimeControl "40/5400+30:1800+30"]

{[%evp 9,56,20,22,29,14,8,13,2,8,-19,-23,-23,-7,-8,-2,-31,-18,-19,-11,-19,-13,-24,-10,-9,0,-9,11,-12,28,8,4,-43,-46,-33,-43,-56,-52,-60,-58,-64,-60,-131,-131,-189,-144,-291,-293,-387,-368]} 1. d4 {[%emt 0:00:10]} e6 {[%emt 0:00:09]} 2. c4 {[%emt 0:00:12]} f5 {[%emt 0:00:06]} 3. Nf3 {[%emt 0:01:01]} Nf6 {[%emt 0:00:07]} 4. e3 {[%emt 0:01:26]} b6 {[%emt 0:03:05]} 5. Be2 {[%emt 0:00:32]} Bb7 {[%emt 0:00:16]} 6. O-O {[%emt 0:00:16]} Be7 {[%emt 0:00:25]} 7. Nbd2 {[%emt 0:05:20]} O-O {[%emt 0:00:24]} 8. Ne5 {[%emt 0:02:35]} Qe8 {[%emt 0:08:28]} 9. f4 {[%emt 0:07:55]} d6 {[%emt 0:06:25]} 10. Nd3 {[%emt 0:00:32]} c5 {[%emt 0:00:41]} 11. b3 {[%emt 0:09:25]} Ne4 {[%emt 0:09:40]} 12. Bf3 {[%emt 0:05:16]} Nd7 {[%emt 0:02:38][%cal Bb8d7,Bd7f6,Bf6e4][%mdl 32]} 13. Bb2 {[%emt 0:00:57]} Ndf6 {[%emt 0:01:40]} 14. Qe1 {[%emt 0:05:15]} Rb8 {[%emt 0:05:00]} 15. Rb1 {[%emt 0:06:57]} Nxd2 {[%emt 0:07:06]} 16. Qxd2 {[%emt 0:02:50]} Ne4 {[%emt 0:00:05]} 17. Qe2 {[%emt 0:00:47]} Bf6 {[%emt 0:00:12]} 18. Rfd1 {[%emt 0:05:15]} Qf7 {[%emt 0:00:35]} 19. Rbc1 {[%emt 0:14:10]} Rfd8 {[%emt 0:00:19]} 20. b4 {[%emt 0:03:01]} (20. Rc2 $11) 20... cxb4 $15 {[%emt 0:09:06]} 21. Nxb4 {[%emt 0:00:43][%cal Bd3b4,Bb4c2,Bc2a3][%mdl 32]} a5 {[%emt 0:06:25]} 22. Nc2 {[%emt 0:05:32]} Ba6 {[%emt 0:00:08]} 23. Na3 {[%emt 0:00:29]} d5 {[%emt 0:00:06]} 24. Bxe4 {[%emt 0:03:29]} fxe4 {[%emt 0:00:49]} ({Of course not} 24... dxe4 25. Qc2 $11) 25. Qe1 {[%emt 0:02:15]} ({White should try} 25. Nb5 $15) 25... Qd7 $17 {[%emt 0:02:49] Black is more active.} 26. Qc3 {[%emt 0:03:35]} (26. Nb5 $17) 26... Rdc8 {[%emt 0:02:18]} 27. Rd2 {[%emt 0:08:21]} (27. Qb3 $17) 27... dxc4 $19 {[%emt 0:04:31]} 28. Rdc2 {[%emt 0:01:16]} Qd8 {[%emt 0:02:50]} 0-1

[Event "Uhlenkoeper-Open 2024"]
[Site "Uelzen"]
[Date "2024.12.27"]
[Round "1.3"]
[White "Parvanyan, Ashot"]
[Black "Kruger, Daniel"]
[Result "*"]
[ECO "E08"]
[WhiteElo "2399"]
[BlackElo "1864"]
[Annotator "RC"]
[PlyCount "38"]
[EventDate "2024.12.27"]
[EventType "swiss"]
[EventCountry "GER"]
[SourceTitle "playchess.com"]
[Source "ChessBase"]
[SourceQuality "1"]
[TimeControl "40/5400+30:1800+30"]

1. Nf3 {[%emt 0:00:04]} Nf6 {[%emt 0:00:21]} 2. c4 {[%emt 0:00:07]} e6 {[%emt 0:00:23]} 3. g3 {[%emt 0:00:13]} d5 {[%emt 0:00:26]} 4. d4 {[%emt 0:00:13]} Be7 {[%emt 0:01:14]} 5. Bg2 {[%emt 0:00:06]} O-O {[%emt 0:00:05]} 6. O-O {[%emt 0:00:05]} c6 {[%emt 0:00:31]} 7. Qc2 {[%emt 0:00:48]} Nbd7 {[%emt 0:01:58]} 8. b3 {[%emt 0:03:40]} b6 {[%emt 0:00:46]} 9. Nc3 {[%emt 0:00:21]} Ba6 {[%emt 0:00:50]} 10. Nd2 {[%emt 0:14:03]} Rc8 {[%emt 0:06:00]} 11. a4 {[%emt 0:03:04]} Bb7 {[%emt 0:26:36]} 12. Bb2 {[%emt 0:02:47]} c5 {[%emt 0:07:19]} 13. dxc5 {[%emt 0:05:00]} bxc5 {[%emt 0:05:04]} 14. Rfd1 {[%emt 0:01:01]} Qc7 {[%emt 0:06:36]} 15. cxd5 {[%emt 0:05:35]} exd5 {[%emt 0:39:51]} 16. e3 {[%emt 0:06:36]} Rfd8 {[%emt 0:03:15]} 17. Rac1 {[%emt 0:05:04]} a6 {[%emt 0:02:01]} 18. Nf3 {[%emt 0:01:11]} Bc6 {[%emt 0:05:41]} 19. Nh4 {[%emt 0:50:02]} Qb7 {[%emt 0:03:10]} *

[Event "Uhlenkoeper-Open 2024"]
[Site "Uelzen"]
[Date "2024.12.27"]
[Round "1.5"]
[White "Stopa, Jacek"]
[Black "Petersen, Malte"]
[Result "1-0"]
[ECO "D20"]
[WhiteElo "2323"]
[BlackElo "1780"]
[Annotator "RC"]
[PlyCount "61"]
[EventDate "2024.12.27"]
[EventType "swiss"]
[EventCountry "GER"]
[SourceTitle "playchess.com"]
[Source "ChessBase"]
[SourceQuality "1"]
[TimeControl "40/5400+30:1800+30"]

1. d4 {[%emt 0:00:02]} d5 {[%emt 0:00:11]} 2. c4 {[%emt 0:00:04]} dxc4 {[%emt 0:00:06]} 3. e4 {[%emt 0:00:18]} e5 {[%emt 0:00:06]} 4. Nf3 {[%emt 0:00:19]} Bb4+ {[%emt 0:00:06]} 5. Nc3 {[%emt 0:01:05]} exd4 {[%emt 0:00:22]} 6. Nxd4 {[%emt 0:01:27]} Nd7 {[%emt 0:02:53]} 7. Bxc4 {[%emt 0:03:59]} Ngf6 {[%emt 0:00:19]} 8. O-O {[%emt 0:07:20]} O-O {[%emt 0:02:50]} 9. f3 {[%emt 0:03:30]} Ne5 {[%emt 0:02:52]} 10. Be2 {[%emt 0:00:06]} Bc5 {[%emt 0:04:45]} 11. Be3 {[%emt 0:00:05]} Nc6 {[%emt 0:03:26]} 12. Nc2 {[%emt 0:00:34]} Bxe3+ {[%emt 0:00:06]} 13. Nxe3 {[%emt 0:00:05]} Nd4 {[%emt 0:07:00]} 14. e5 {[%emt 0:03:09]} Nxe2+ {[%emt 0:04:31]} 15. Qxe2 {[%emt 0:00:08]} Nd7 {[%emt 0:02:44]} 16. f4 {[%emt 0:00:38]} c6 {[%emt 0:02:39]} 17. Rad1 {[%emt 0:01:54]} Qe7 {[%emt 0:01:51]} 18. Nf5 {[%emt 0:05:11]} Qc5+ {[%emt 0:02:09]} 19. Kh1 {[%emt 0:00:22]} Nb6 {[%emt 0:02:20]} 20. Ne4 {[%emt 0:08:21]} Qc4 {[%emt 0:05:48]} 21. Nf6+ {[%emt 0:13:26]} Kh8 {[%emt 0:00:13]} 22. Qg4 {[%emt 0:00:52]} Bxf5 {[%emt 0:07:09]} 23. Qxf5 {[%emt 0:01:40]} g6 {[%emt 0:12:06]} 24. Qh3 {[%emt 0:01:04]} h5 {[%emt 0:00:08]} 25. Nxh5 {[%emt 0:00:14]} gxh5 {[%emt 0:02:01]} 26. Qxh5+ {[%emt 0:00:05]} Kg7 {[%emt 0:01:11]} 27. Qg4+ {[%emt 0:00:46]} Kh8 {[%emt 0:01:11]} 28. Rf3 {[%emt 0:00:15]} Qe4 {[%emt 0:00:38]} 29. Rh3+ {[%emt 0:00:04]} Qh7 {[%emt 0:00:08]} 30. Rxh7+ {[%emt 0:00:03]} Kxh7 {[%emt 0:00:06]} 31. Rd3 {[%emt 0:00:03]} 1-0

[Event "Uhlenkoeper-Open 2024"]
[Site "Uelzen"]
[Date "2024.12.27"]
[Round "1.7"]
[White "von Estorff, Jacob"]
[Black "Labitzki, Marek"]
[Result "1-0"]
[ECO "B50"]
[WhiteElo "2209"]
[BlackElo "1782"]
[Annotator "RC"]
[PlyCount "45"]
[EventDate "2024.12.27"]
[EventType "swiss"]
[EventCountry "GER"]
[SourceTitle "playchess.com"]
[Source "ChessBase"]
[SourceQuality "1"]
[TimeControl "40/5400+30:1800+30"]

1. e4 {[%emt 0:00:05]} c5 {[%emt 0:00:09]} 2. Nf3 {[%emt 0:00:05]} d6 {[%emt 0:00:05]} 3. c3 {[%emt 0:01:06]} Nf6 {[%emt 0:01:46]} 4. Qc2 {[%emt 0:00:55]} e5 {[%emt 0:07:05]} 5. d4 {[%emt 0:04:05]} cxd4 {[%emt 0:05:14]} 6. cxd4 {[%emt 0:00:09]} exd4 {[%emt 0:00:54]} 7. Nxd4 {[%emt 0:00:57]} Be7 {[%emt 0:01:07]} 8. Bb5+ {[%emt 0:02:15]} Bd7 {[%emt 0:02:08]} 9. Bxd7+ {[%emt 0:05:14]} Nbxd7 {[%emt 0:04:15]} 10. Nc3 {[%emt 0:00:12]} O-O {[%emt 0:01:21]} 11. O-O {[%emt 0:00:19]} Re8 {[%emt 0:05:36]} 12. Bf4 {[%emt 0:02:35]} Bf8 {[%emt 0:16:11]} 13. Rad1 {[%emt 0:01:40]} Nc5 {[%emt 0:14:10]} 14. Rfe1 {[%emt 0:02:03]} Rc8 {[%emt 0:04:56]} 15. f3 {[%emt 0:05:41]} Nh5 {[%emt 0:06:26]} 16. Be3 {[%emt 0:02:07]} a6 {[%emt 0:04:36]} 17. Qf2 {[%emt 0:02:31]} Ne6 {[%emt 0:06:11]} 18. Nf5 {[%emt 0:02:23]} Rc6 {[%emt 0:09:41]} 19. Rd2 {[%emt 0:03:12]} Qa5 {[%emt 0:03:05]} 20. Rd5 {[%emt 0:02:40]} Qc7 {[%emt 0:00:34]} 21. Nh6+ {[%emt 0:01:15]} gxh6 {[%emt 0:01:22]} 22. Rxh5 {[%emt 0:00:06]} Ng7 {[%emt 0:02:05]} 23. Rxh6 {[%emt 0:00:43]} 1-0

[Event "Uhlenkoeper-Open 2024"]
[Site "Uelzen"]
[Date "2024.12.27"]
[Round "1.8"]
[White "Westerhoff, Ralf"]
[Black "Weigand, Anton"]
[Result "0-1"]
[ECO "B33"]
[WhiteElo "1702"]
[BlackElo "2092"]
[Annotator "RC"]
[PlyCount "66"]
[EventDate "2024.12.27"]
[EventType "swiss"]
[EventCountry "GER"]
[SourceTitle "playchess.com"]
[Source "ChessBase"]
[SourceQuality "1"]
[TimeControl "40/5400+30:1800+30"]

1. e4 {[%emt 0:00:03]} c5 {[%emt 0:00:05]} 2. Nf3 {[%emt 0:00:03]} Nc6 {[%emt 0:00:08]} 3. Nc3 {[%emt 0:00:06]} Nf6 {[%emt 0:00:44]} 4. d4 {[%emt 0:01:19]} cxd4 {[%emt 0:00:09]} 5. Nxd4 {[%emt 0:00:09]} e5 {[%emt 0:00:15]} 6. Nxc6 {[%emt 0:00:39]} bxc6 {[%emt 0:00:17]} 7. Be2 {[%emt 0:00:33]} Bb4 {[%emt 0:01:50]} 8. Bg5 {[%emt 0:04:30]} Bxc3+ {[%emt 0:08:53]} 9. bxc3 {[%emt 0:00:13]} Qa5 {[%emt 0:00:04]} 10. O-O {[%emt 0:03:40]} Nxe4 {[%emt 0:01:56]} 11. Bh4 {[%emt 0:00:41]} Nxc3 {[%emt 0:07:48]} 12. Qd6 {[%emt 0:04:21]} Nxe2+ {[%emt 0:05:25]} 13. Kh1 {[%emt 0:03:09]} f6 {[%emt 0:00:05]} 14. Rfe1 {[%emt 0:01:35]} Qd5 {[%emt 0:06:34]} 15. Qxd5 {[%emt 0:04:06]} cxd5 {[%emt 0:00:22]} 16. Rxe2 {[%emt 0:00:06]} Ba6 {[%emt 0:01:07]} 17. Re3 {[%emt 0:02:09]} Bc4 {[%emt 0:02:02]} 18. f4 {[%emt 0:00:35]} d6 {[%emt 0:00:24]} 19. Be1 {[%emt 0:01:47]} Kd7 {[%emt 0:02:15]} 20. Bb4 {[%emt 0:05:49]} exf4 {[%emt 0:03:59]} 21. Rf3 {[%emt 0:01:11]} g5 {[%emt 0:00:03]} 22. Bc3 {[%emt 0:00:17]} Rhf8 {[%emt 0:03:06]} 23. Rh3 {[%emt 0:03:06]} Rf7 {[%emt 0:00:04]} 24. Rb1 {[%emt 0:01:42]} Ke6 {[%emt 0:07:14]} 25. g4 {[%emt 0:03:15]} Re8 {[%emt 0:17:02]} 26. Bd4 {[%emt 0:03:17]} Be2 {[%emt 0:05:10]} 27. Ra3 {[%emt 0:09:06]} Rc7 {[%emt 0:01:28]} 28. h3 {[%emt 0:03:30]} a6 {[%emt 0:01:05]} 29. Rb6 {[%emt 0:01:11]} Rxc2 {[%emt 0:02:52]} 30. Rb7 {[%emt 0:01:35]} Re7 {[%emt 0:00:09]} 31. Rb6 {[%emt 0:00:46]} Rec7 {[%emt 0:06:34]} 32. Ra5 {[%emt 0:04:13]} Bf3+ {[%emt 0:01:14]} 33. Kg1 {[%emt 0:00:13]} Rg2+ {[%emt 0:00:13]} 0-1

[Event "Uhlenkoeper-Open 2024"]
[Site "Uelzen"]
[Date "2024.12.27"]
[Round "1.9"]
[White "Carmesin, Leon Lucas Finn"]
[Black "Warns, Harald"]
[Result "1-0"]
[ECO "D35"]
[WhiteElo "2081"]
[BlackElo "1727"]
[Annotator "RC"]
[PlyCount "70"]
[EventDate "2024.12.27"]
[EventType "swiss"]
[EventCountry "GER"]
[SourceTitle "playchess.com"]
[Source "ChessBase"]
[SourceQuality "1"]
[TimeControl "40/5400+30:1800+30"]

1. d4 {[%emt 0:00:02]} d5 {[%emt 0:00:02]} 2. c4 {[%emt 0:00:01]} e6 {[%emt 0:00:02]} 3. Nc3 {[%emt 0:00:04]} Nf6 {[%emt 0:00:20]} 4. cxd5 {[%emt 0:00:14]} exd5 {[%emt 0:01:15]} 5. Bg5 {[%emt 0:00:08]} Be7 {[%emt 0:00:16]} 6. e3 {[%emt 0:00:36]} h6 {[%emt 0:02:04]} 7. Bh4 {[%emt 0:00:08]} c6 {[%emt 0:00:47]} 8. Bd3 {[%emt 0:00:14]} Be6 {[%emt 0:00:30]} 9. Nge2 {[%emt 0:01:14]} Nh5 {[%emt 0:07:30]} 10. Bxe7 {[%emt 0:02:00]} Qxe7 {[%emt 0:00:09]} 11. Qc2 {[%emt 0:00:10]} Nd7 {[%emt 0:02:15]} 12. O-O-O {[%emt 0:01:58]} O-O {[%emt 0:01:49]} 13. h4 {[%emt 0:02:17]} c5 {[%emt 0:01:22]} 14. Bf5 {[%emt 0:01:42]} Nhf6 {[%emt 0:05:28]} 15. Nf4 {[%emt 0:09:01]} cxd4 {[%emt 0:02:30]} 16. Rxd4 {[%emt 0:01:02]} Rfc8 {[%emt 0:00:59]} 17. Kb1 {[%emt 0:01:23]} Nb6 {[%emt 0:00:41]} 18. g4 {[%emt 0:04:19]} Rc4 {[%emt 0:02:28]} 19. g5 {[%emt 0:05:28]} Bxf5 {[%emt 0:08:46]} 20. Qxf5 {[%emt 0:00:20]} Ne4 {[%emt 0:05:26]} 21. Ncxd5 {[%emt 0:01:32]} Qe8 {[%emt 0:08:25]} 22. gxh6 {[%emt 0:03:13]} Rxd4 {[%emt 0:02:57]} 23. exd4 {[%emt 0:01:03]} Nxd5 {[%emt 0:09:52]} 24. Nxd5 {[%emt 0:02:10]} Nd2+ {[%emt 0:09:49]} 25. Kc2 {[%emt 0:01:08]} Qe4+ {[%emt 0:00:48]} 26. Kxd2 {[%emt 0:06:19]} Qxd4+ {[%emt 0:03:55]} 27. Ke1 {[%emt 0:05:33]} Re8+ {[%emt 0:00:45]} 28. Ne3 {[%emt 0:00:42]} Qxb2 {[%emt 0:09:34]} 29. Kf1 {[%emt 0:00:59]} Qc1+ {[%emt 0:01:34]} 30. Kg2 {[%emt 0:00:18]} Qc6+ {[%emt 0:00:14]} 31. Qf3 {[%emt 0:01:48]} Qxh6 {[%emt 0:00:56]} 32. h5 {[%emt 0:01:36]} Qg5+ {[%emt 0:03:51]} 33. Qg3 {[%emt 0:00:21]} Qa5 {[%emt 0:00:54]} 34. h6 {[%emt 0:00:37]} g6 {[%emt 0:00:25]} 35. Qf4 {[%emt 0:00:17]} Qe5 {[%emt 0:09:22]} 1-0

[Event "Uhlenkoeper-Open 2024"]
[Site "Uelzen"]
[Date "2024.12.27"]
[Round "1.10"]
[White "Wohlrabe, Joerg"]
[Black "Bogomolow, Sergej"]
[Result "0-1"]
[ECO "C45"]
[WhiteElo "1695"]
[BlackElo "2090"]
[Annotator "RC"]
[PlyCount "58"]
[EventDate "2024.12.27"]
[EventType "swiss"]
[EventCountry "GER"]
[SourceTitle "playchess.com"]
[Source "ChessBase"]
[SourceQuality "1"]
[TimeControl "40/5400+30:1800+30"]

1. e4 {[%emt 0:00:02]} e5 {[%emt 0:00:02]} 2. Nf3 {[%emt 0:00:03]} Nc6 {[%emt 0:00:02]} 3. d4 {[%emt 0:00:02]} exd4 {[%emt 0:00:02]} 4. Nxd4 {[%emt 0:00:02]} Bc5 {[%emt 0:00:03]} 5. Be3 {[%emt 0:00:03]} Qf6 {[%emt 0:00:10]} 6. c3 {[%emt 0:00:07]} Nge7 {[%emt 0:00:26]} 7. Bb5 {[%emt 0:01:00]} O-O {[%emt 0:15:36]} 8. Nxc6 {[%emt 0:00:58]} bxc6 {[%emt 0:00:16]} 9. Bxc5 {[%emt 0:00:14]} cxb5 {[%emt 0:00:08]} 10. O-O {[%emt 0:00:56]} d6 {[%emt 0:01:51]} 11. Be3 {[%emt 0:01:23]} a5 {[%emt 0:11:29]} 12. Qd2 {[%emt 0:07:17]} Qg6 {[%emt 0:05:38]} 13. f3 {[%emt 0:00:33]} Rb8 {[%emt 0:04:41]} 14. Rc1 {[%emt 0:07:25]} f5 {[%emt 0:07:28]} 15. Bg5 {[%emt 0:02:12]} Re8 {[%emt 0:04:38]} 16. exf5 {[%emt 0:10:51]} Nxf5 {[%emt 0:02:56]} 17. Na3 {[%emt 0:01:09]} h6 {[%emt 0:01:38]} 18. Bf4 {[%emt 0:01:06]} Bb7 {[%emt 0:09:40]} 19. Qf2 {[%emt 0:04:50]} b4 {[%emt 0:06:19]} 20. Nc4 {[%emt 0:05:21]} Ba6 {[%emt 0:01:36]} 21. Nxa5 {[%emt 0:04:56]} Re2 {[%emt 0:02:03]} 22. Qf1 {[%emt 0:02:43]} Rxb2 {[%emt 0:01:53]} 23. c4 {[%emt 0:00:10]} Re8 {[%emt 0:02:12]} 24. Re1 {[%emt 0:01:45]} Rxe1 {[%emt 0:04:35]} 25. Rxe1 {[%emt 0:00:13]} Rxa2 {[%emt 0:00:09]} 26. Ra1 {[%emt 0:01:43]} Rc2 {[%emt 0:00:40]} 27. g4 {[%emt 0:04:02]} Nd4 {[%emt 0:04:32]} 28. Be3 {[%emt 0:06:36]} Qf6 {[%emt 0:01:25]} 29. f4 {[%emt 0:02:22]} Nf5 {[%emt 0:12:52]} 0-1

[Event "Uhlenkoeper-Open 2024"]
[Site "Uelzen"]
[Date "2024.12.27"]
[Round "2.1"]
[White "Martin, Dennis"]
[Black "Stelmaszyk, Nico"]
[Result "0-1"]
[ECO "E17"]
[WhiteElo "2005"]
[BlackElo "2403"]
[Annotator "ChessBase"]
[PlyCount "94"]
[EventDate "2024.12.27"]
[EventType "swiss"]
[EventCountry "GER"]
[SourceTitle "playchess.com"]
[Source "ChessBase"]
[SourceQuality "1"]
[TimeControl "40/5400+30:1800+30"]

1. d4 {[%emt 0:00:02]} Nf6 {[%emt 0:00:06]} 2. c4 {[%emt 0:00:03]} e6 {[%emt 0:00:05]} 3. Nf3 {[%emt 0:00:05]} b6 {[%emt 0:00:14]} 4. g3 {[%emt 0:00:02]} Bb7 {[%emt 0:00:06]} 5. Bg2 {[%emt 0:00:08]} Be7 {[%emt 0:00:06]} 6. d5 {[%emt 0:00:10]} Na6 {[%emt 0:05:14]} 7. Nc3 {[%emt 0:01:18]} Bb4 {[%emt 0:01:36]} 8. Bd2 {[%emt 0:01:09]} Nc5 {[%emt 0:02:28]} 9. Nh4 {[%emt 0:04:14]} O-O {[%emt 0:04:32]} 10. O-O {[%emt 0:01:16]} Re8 {[%emt 0:02:47]} 11. Re1 {[%emt 0:08:27]} Bxc3 {[%emt 0:12:22]} 12. Bxc3 {[%emt 0:02:38]} exd5 {[%emt 0:00:09]} 13. cxd5 {[%emt 0:00:38]} Nce4 {[%emt 0:00:55]} 14. Nf5 {[%emt 0:05:08]} Nxc3 {[%emt 0:10:38]} 15. bxc3 {[%emt 0:00:15]} g6 {[%emt 0:02:38]} 16. Ne3 {[%emt 0:02:22]} Re5 {[%emt 0:22:06]} 17. Qd4 {[%emt 0:04:42]} Qe8 {[%emt 0:06:14]} 18. Nc4 {[%emt 0:07:18]} Rxe2 {[%emt 0:03:22]} 19. Rxe2 {[%emt 0:02:09]} Qxe2 {[%emt 0:00:07]} 20. Ne3 {[%emt 0:00:19]} Nh5 {[%emt 0:10:22]} 21. Ng4 {[%emt 0:09:23]} f6 {[%emt 0:01:56]} 22. Nxf6+ {[%emt 0:02:12]} Nxf6 {[%emt 0:00:06]} 23. Qxf6 {[%emt 0:00:05]} Re8 {[%emt 0:00:29]} 24. Qd4 {[%emt 0:03:41]} Qe5 {[%emt 0:02:38]} 25. Qc4 {[%emt 0:01:25]} Qd6 {[%emt 0:01:47]} 26. Rd1 {[%emt 0:06:39]} Qc5 {[%emt 0:01:11]} 27. Qd3 {[%emt 0:00:14]} Re5 {[%emt 0:01:08]} 28. Qf3 {[%emt 0:03:53]} Kg7 {[%emt 0:01:23]} 29. Qf4 {[%emt 0:05:43]} d6 {[%emt 0:03:41]} 30. Qd2 {[%emt 0:01:06]} a5 {[%emt 0:00:33]} 31. Re1 {[%emt 0:01:09]} Rxe1+ {[%emt 0:01:12]} 32. Qxe1 {[%emt 0:05:54]} Bxd5 {[%emt 0:00:01]} 33. Bxd5 Qxd5 {[%emt 0:00:01]} 34. Qe7+ {[%emt 0:04:25]} Qf7 {[%emt 0:00:02]} 35. Qd8 {[%emt 0:00:17]} b5 {[%emt 0:00:42]} 36. a3 {[%emt 0:00:52]} h5 {[%emt 0:00:38]} 37. h4 {[%emt 0:00:55]} Kh7 {[%emt 0:00:07]} 38. Qg5 {[%emt 0:02:54]} Qg7 {[%emt 0:03:08]} 39. Qxb5 {[%emt 0:01:34]} Qxc3 {[%emt 0:00:02]} 40. Qd7+ {[%emt 0:00:29]} Qg7 {[%emt 0:00:07]} 41. Qa4 {[%emt 0:31:02]} Qe5 {[%emt 0:31:35]} 42. Qd7+ {[%emt 0:00:50]} Qg7 {[%emt 0:00:05]} 43. Qa4 {[%emt 0:00:17]} c5 {[%emt 0:00:10]} 44. Qxa5 {[%emt 0:00:07]} c4 {[%emt 0:00:22]} 45. Qa4 {[%emt 0:01:12]} c3 {[%emt 0:00:58]} 46. Qc2 {[%emt 0:00:31]} d5 {[%emt 0:00:00]} 47. Qd3 {[%emt 0:00:00]} Qc7 {[%emt 0:00:00]} 0-1

[Event "Uhlenkoeper-Open 2024"]
[Site "Uelzen"]
[Date "2024.12.27"]
[Round "2.2"]
[White "Glek, Igor"]
[Black "Raddatz, Michael"]
[Result "1-0"]
[ECO "B51"]
[WhiteElo "2431"]
[BlackElo "1927"]
[Annotator "TA"]
[PlyCount "35"]
[EventDate "2024.12.27"]
[EventType "swiss"]
[EventCountry "GER"]
[SourceTitle "playchess.com"]
[Source "ChessBase"]
[SourceQuality "1"]
[TimeControl "40/5400+30:1800+30"]

{[%evp 9,34,26,37,23,50,47,50,54,72,56,94,90,98,99,110,100,199,147,599,592,602,589,1040,1047,29998,29999,29999]} 1. e4 {[%emt 0:01:12]} c5 {[%emt 0:00:12]} 2. Nf3 {[%emt 0:00:13]} d6 {[%emt 0:00:38]} 3. Bb5+ {[%emt 0:05:34]} Nd7 {[%emt 0:01:08]} 4. d4 {[%emt 0:02:13]} a6 {[%emt 0:01:21]} 5. Bxd7+ {[%emt 0:00:22]} Bxd7 {[%emt 0:00:50]} 6. dxc5 {[%emt 0:01:37]} dxc5 {[%emt 0:01:08]} 7. Nc3 {[%emt 0:00:08]} g6 {[%emt 0:04:01]} 8. Be3 {[%emt 0:05:13] White is slightly better.} Rc8 {[%emt 0:04:07]} 9. Qd2 {[%emt 0:08:09]} Bg7 {[%emt 0:00:52]} 10. O-O-O {[%emt 0:00:12]} h6 {[%emt 0:05:26]} 11. Rhe1 {[%emt 0:06:34]} b5 {[%emt 0:01:29]} 12. e5 {[%emt 0:00:44] White is much more active. The black rooks are passive.} h5 {[%emt 0:08:49] Black is weak on the dark squares} (12... Bc6 $16) 13. Ne4 {[%emt 0:02:29]} (13. Ng5 $18) 13... Nh6 {[%emt 0:06:54][%mdl 8192]} (13... Bc6 $16) 14. Bg5 $18 {[%emt 0:15:33]} Be6 {[%emt 0:09:10] [#]} 15. Nd6+ $1 {[%emt 0:01:56][%mdl 512] Excellent horsemanship.} Kf8 {[%emt 0:00:15]} (15... exd6 16. Bxd8) 16. Nxc8 {[%emt 0:00:05]} Qxc8 {[%emt 0:00:06]} 17. Qd8+ {[%emt 0:00:03]} Qxd8 {[%emt 0:00:07]} 18. Rxd8# {[%emt 0:00:48] White took control after the opening.   Weighted Error Value: White=0.05 (flawless) /Black=1.06.  Loses game:     	---       	Black=1      Mistake:       	White=1     	Black=1      Inaccurate:     	---       	Black=4      OK:         	White=5     	---        Best:        	White=2     	---        Brilliant:      	White=1     	---} 1-0